bitfinex/quotes_ETHUSD_20250821
["timestamp","ask_amount","ask_price","bid_price","bid_amount"]
[1755771606376,0.002,4290.7,4290.1,0.1168]
[1755771606582,0.3047,4290.2,4290.1,0.1168]
[1755771606788,0.4384,4290.5,4290.1,0.1168]
[1755771607092,0.002,4290.7,4290.1,0.1168]
[1755771607093,0.002,4290.7,4290.2,0.02330893]
[1755771607583,0.002,4290.7,4290.4,3.0]
[1755771607747,0.002,4290.7,4290.6,3.4085]
[1755771607947,0.002,4290.7,4290.6,2.76248312]
[1755771609361,0.002,4290.7,4290.6,2.93467636]
[1755771609764,0.002,4290.7,4290.6,2.95798312]
[1755771609969,0.002,4290.7,4290.6,7.12467636]
[1755771610185,0.002,4290.7,4290.6,10.12467636]
[1755771610384,0.002,4290.7,4290.6,12.57967636]
[1755771610656,0.002,4290.7,4290.6,10.12467636]
[1755771610868,0.002,4290.7,4290.6,9.92917636]
[1755771611074,0.002,4290.7,4290.6,7.5985]
[1755771611278,0.002,4290.7,4290.6,9.92917636]
[1755771611554,0.002,4290.7,4290.6,7.5985]
[1755771611788,0.002,4290.7,4290.6,7.3068]
[1755771611987,0.002,4290.7,4290.6,9.92917636]
[1755771612654,0.002,4290.7,4290.6,10.12467636]
[1755771612975,0.002,4290.7,4290.6,6.59467636]
[1755771613376,0.002,4290.7,4290.6,6.68806536]
[1755771614306,0.0012,4290.7,4290.6,6.68806536]
[1755771614592,0.0012,4290.7,4290.6,5.83256536]
[1755771614961,0.0012,4290.7,4290.6,10.02256536]
[1755771618516,0.0012,4290.7,4290.6,9.63747636]
[1755771618804,0.0012,4290.7,4290.6,10.12467636]
[1755771620068,0.7369,4290.7,4290.6,4.19]
[1755771620288,0.7369,4290.7,4290.5,0.093397]
[1755771620505,0.4325,4290.6,4289.7,17.53486429]
[1755771620702,0.3032,4289.9,4289.7,17.53486429]
[1755771620907,0.3032,4289.9,4289.8,4.77658643]
[1755771621079,0.7357,4289.9,4289.8,4.77658643]
[1755771622193,0.7357,4289.9,4289.8,0.021]
[1755771626323,0.7357,4289.9,4289.3,0.001]
[1755771626324,0.66,4289.8,4289.3,0.001]
[1755771626523,0.66,4289.3,4288.9,0.001]
[1755771626714,0.3032,4289.0,4288.9,0.001]
[1755771626913,0.3032,4289.0,4288.8,0.02]
[1755771626914,0.66,4288.9,4288.8,0.02]
[1755771627093,0.66,4288.9,4287.8,0.02]
[1755771627094,0.66,4288.8,4287.8,0.02]
[1755771627445,0.3032,4288.6,4287.8,0.02]
[1755771627903,0.7357,4288.6,4287.9,3.02332143]
[1755771628239,0.7357,4288.6,4287.9,0.02332143]
[1755771629656,0.7357,4288.6,4288.0,0.17428531]
[1755771629808,0.4325,4289.6,4288.5,3.2927]
[1755771630008,0.1168,4289.4,4289.0,3.0]
[1755771630240,0.1168,4289.8,4289.3,17.36274471]
[1755771630414,0.4325,4290.2,4289.4,5.35462142]
[1755771630613,0.1168,4290.1,4289.8,0.02]
[1755771630825,0.5493,4290.1,4289.8,0.02]
[1755771631548,0.1168,4290.1,4289.9,0.02331056]
[1755771631751,0.7357,4290.0,4289.8,0.02]
[1755771632639,0.1168,4290.1,4289.8,0.02]
[1755771632839,0.1168,4290.1,4289.9,0.02331056]
[1755771633150,0.5493,4290.1,4289.8,0.02]
[1755771633346,0.4325,4290.0,4289.8,0.02]
[1755771633644,0.3032,4289.9,4289.8,0.02]
[1755771634419,0.7357,4289.9,4289.8,0.02]
[1755771635315,0.1168,4290.1,4289.8,0.02]
[1755771635752,0.3032,4289.9,4289.8,0.02]
[1755771636338,0.7357,4289.9,4289.8,0.02]
[1755771636958,0.3032,4289.9,4289.8,0.02]
[1755771637161,0.1168,4290.1,4289.8,0.02]
[1755771637464,0.1168,4290.1,4289.9,0.02331056]
[1755771637663,0.737,4290.0,4289.8,0.02]
[1755771638020,0.2936,4290.0,4289.8,0.02]
[1755771638222,0.1168,4290.1,4289.9,0.02331056]
[1755771638522,0.02,4290.8,4290.0,3.4026]
[1755771638723,0.1168,4290.6,4290.2,3.0]
[1755771638918,0.1168,4290.6,4290.3,0.02330839]
[1755771639123,0.1168,4290.6,4290.2,3.0]
[1755771639361,0.5594,4290.6,4290.2,3.0]
[1755771639546,0.1168,4290.6,4290.2,3.0]
[1755771639775,0.2944,4290.3,4290.0,0.1168]
[1755771640093,0.4426,4290.2,4290.0,0.1168]
[1755771640293,0.2944,4290.1,4290.0,0.1168]
[1755771640494,0.2944,4290.1,4289.8,0.02]
[1755771640652,0.4426,4290.0,4289.8,0.02]
[1755771640852,0.2944,4289.9,4289.8,0.02]
[1755771641152,0.737,4289.9,4289.8,0.02]
[1755771641590,0.1168,4290.1,4289.8,0.02]
[1755771641892,0.1168,4290.1,4289.9,0.02331056]
[1755771642180,0.2944,4290.0,4289.9,0.02331056]
[1755771642380,0.5594,4290.1,4289.9,0.02331056]
[1755771642572,0.737,4290.0,4289.9,0.02331056]
[1755771642774,0.737,4290.0,4289.8,0.02]
[1755771643163,0.1168,4290.1,4289.8,0.02]
[1755771643365,0.4426,4290.4,4289.8,3.1368]
[1755771643366,0.5594,4290.4,4289.8,3.1368]
[1755771644292,0.2944,4289.9,4289.8,0.1368]
[1755771644697,0.737,4289.9,4289.8,0.02]
[1755771646287,0.1168,4290.0,4289.8,0.02]
[1755771647018,0.02,4290.8,4289.9,2.64016722]
[1755771647163,0.02,4290.8,4290.4,3.0]
[1755771647359,0.02,4290.8,4290.5,0.0233073]
[1755771647573,0.02,4290.8,4290.6,0.2858]
[1755771647899,0.02,4290.8,4290.6,3.4026]
[1755771648108,0.02,4290.8,4290.6,5.75658312]
[1755771648322,0.02,4290.8,4290.6,5.97257636]
[1755771648611,0.02,4290.8,4290.6,6.08645927]
[1755771653362,0.02,4290.8,4290.7,5.99062204]
[1755771653568,0.02,4290.8,4290.7,23.87846675]
[1755771654189,0.002,4290.9,4290.8,5.99056772]
[1755771654366,0.002,4290.9,4290.8,6.51566772]
[1755771654709,0.002,4291.2,4291.1,2.99040479]
[1755771654905,0.002,4291.2,4291.1,23.6389495]
[1755771655091,0.002,4291.2,4291.1,23.0957495]
[1755771655779,0.739,4291.2,4291.1,3.1168]
[1755771656172,0.2964,4291.2,4291.1,3.1168]
[1755771656372,0.739,4291.2,4291.1,3.1168]
[1755771657508,0.002,4291.2,4291.1,5.73300479]
[1755771658190,0.02,4291.8,4291.4,19.69298658]
[1755771658403,0.02,4291.8,4291.4,22.97878658]
[1755771658818,0.02,4291.8,4291.4,23.09558658]
[1755771659018,0.02,4291.8,4291.4,23.18896858]
[1755771659522,0.02,4291.8,4291.4,23.42826858]
[1755771659879,0.02,4291.8,4291.4,23.18896858]
[1755771660307,0.739,4291.5,4291.4,3.210182]
[1755771660719,0.739,4291.5,4291.4,3.093382]
[1755771661017,0.739,4291.5,4291.4,3.0]
[1755771661605,0.739,4291.5,4290.4,2.33075014]
[1755771661606,0.739,4291.5,4290.0,17.36274471]
[1755771661819,0.1168,4291.3,4290.6,0.1168]
[1755771661986,0.4426,4291.4,4290.7,3.0]
[1755771662184,0.0012,4291.5,4291.0,17.36274471]
[1755771662413,0.4426,4291.4,4291.3,0.1168]
[1755771662717,0.737,4291.4,4291.3,0.1168]
[1755771664035,0.0012,4291.5,4291.4,5.33024187]
[1755771664214,0.0012,4291.5,4291.4,23.21808658]
[1755771664420,0.0012,4291.5,4291.4,37.06703223]
[1755771664738,0.0012,4291.5,4291.4,18.80498752]
[1755771665081,0.0012,4291.5,4291.4,19.04428752]
[1755771665698,0.0012,4291.5,4291.4,18.80498752]
[1755771665912,0.0012,4291.5,4291.4,5.33024187]
[1755771666727,0.7382,4291.5,4291.3,0.1168]
[1755771667025,0.4426,4291.4,4291.3,0.1168]
[1755771667226,0.737,4291.4,4291.3,0.1168]
[1755771667541,0.0012,4291.5,4291.3,2.44704506]
[1755771667745,0.0012,4291.5,4291.4,2.35354428]
[1755771667903,0.0012,4291.5,4291.4,2.33024187]
[1755771669542,0.0012,4291.5,4291.4,18.51918752]
[1755771669904,0.7645,4291.5,4291.4,3.0]
[1755771670535,0.7645,4291.5,4290.2,13.35967507]
[1755771670756,0.4593,4291.4,4290.3,3.66690684]
[1755771671044,0.1168,4291.3,4290.7,0.1168]
[1755771671257,0.304,4290.8,4290.7,0.1168]
[1755771671804,0.4593,4291.2,4290.7,3.1168]
[1755771672116,0.4593,4291.1,4290.7,5.33058421]
[1755771672322,0.4593,4291.1,4290.7,3.0]
[1755771672651,0.4593,4291.1,4291.0,0.1168]
[1755771672809,0.7633,4291.1,4291.0,0.1168]
[1755771674660,0.7633,4291.1,4290.4,5.33073101]
[1755771674928,0.7633,4291.1,4290.7,0.1168]
[1755771675246,0.4593,4291.0,4290.7,0.1168]
[1755771675545,0.304,4290.8,4290.7,0.1168]
[1755771676037,0.304,4290.8,4290.3,7.19]
[1755771676038,0.7633,4290.8,4290.3,3.0]
[1755771676238,0.4593,4290.7,4290.5,0.1168]
[1755771676554,0.304,4290.6,4290.5,0.1168]
[1755771676846,0.304,4290.6,4290.0,0.001]
[1755771677003,0.1168,4290.2,4290.0,0.001]
[1755771677206,0.304,4290.1,4290.0,0.001]
[1755771677406,0.7633,4290.1,4290.0,0.001]
[1755771680347,0.1168,4290.2,4290.0,0.001]
[1755771680550,0.4593,4290.5,4290.0,0.001]
[1755771680838,0.1168,4290.4,4290.0,0.001]
[1755771681041,0.5761,4290.4,4290.0,2.33198689]
[1755771681243,0.5761,4290.8,4290.2,0.1168]
[1755771681944,0.1168,4290.8,4290.3,0.02330839]
[1755771682122,0.4593,4291.3,4290.5,2.3307165]
[1755771682321,0.1168,4291.1,4290.6,0.02330676]
[1755771682522,0.5761,4291.1,4290.6,0.02330676]
[1755771682847,0.1168,4291.1,4290.8,3.0]
[1755771683051,0.0012,4291.5,4290.8,3.0]
[1755771683052,0.002,4291.3,4290.9,2.4706062]
[1755771683213,0.002,4291.3,4291.0,2.33045551]
[1755771683411,0.002,4291.3,4291.1,0.02330404]
[1755771684334,0.002,4291.3,4291.2,5.33035048]
[1755771684536,0.002,4291.3,4291.2,2.33035048]
[1755771684847,0.002,4291.3,4291.2,2.74295048]
[1755771685345,0.002,4291.3,4291.2,3.09905048]
[1755771685550,0.0012,4291.3,4291.2,3.12235398]
[1755771686043,0.0012,4291.3,4291.2,3.75905048]
[1755771686248,0.0012,4291.3,4291.2,6.75905048]
[1755771687246,0.0012,4291.5,4291.4,2.33024187]
[1755771687422,0.0012,4291.5,4291.4,23.0203628]
[1755771687626,0.0012,4291.5,4291.4,24.01316039]
[1755771688517,0.02,4291.8,4291.5,5.99018758]
[1755771688719,0.002,4292.0,4291.9,2.9899704]
[1755771688950,0.02,4292.8,4291.9,2.9899704]
[1755771688951,0.02,4292.8,4292.1,5.32986183]
[1755771689150,0.02,4292.8,4292.1,5.74246183]
[1755771689318,0.02,4292.8,4292.1,6.09856183]
[1755771690124,0.02,4292.8,4292.1,6.75856183]
[1755771691447,0.02,4292.8,4292.2,5.98980755]
[1755771691627,0.02,4292.8,4292.3,23.67986932]
[1755771691830,0.02,4292.8,4292.3,23.65657179]
[1755771693561,0.02,4292.8,4292.3,3.2958]
[1755771693729,0.02,4292.8,4292.3,23.01986932]
[1755771693929,0.02,4292.8,4292.3,22.99657179]
[1755771696369,0.02,4292.8,4292.7,2.32953618]
[1755771696570,0.02,4292.8,4292.7,23.67965006]
[1755771696780,0.02,4293.8,4292.9,0.66]
[1755771696984,0.02,4293.8,4292.7,20.4692547]
[1755771696985,0.02,4293.8,4293.7,22.70001216]
[1755771697163,0.02,4293.8,4293.7,22.99581216]
[1755771697468,0.02,4293.8,4293.7,23.22670868]
[1755771698034,0.02,4293.8,4293.7,23.68800868]
[1755771699378,0.02,4293.8,4293.7,24.04410868]
[1755771699571,0.02,4293.8,4293.7,23.68800868]
[1755771701739,0.002,4294.3,4294.2,2.32872246]
[1755771702033,0.002,4294.3,4294.2,23.77594098]
[1755771704584,0.002,4294.3,4294.2,23.86925198]
[1755771704867,0.002,4294.3,4294.2,3.210111]
[1755771705031,0.7783,4294.3,4294.2,20.48781852]
[1755771705238,0.002,4294.3,4294.2,22.81654098]
[1755771705664,0.002,4294.3,4294.2,23.11594098]
[1755771705988,0.002,4294.3,4294.2,22.81654098]
[1755771706136,0.7783,4294.3,4294.2,20.48781852]
[1755771707179,0.002,4294.3,4294.2,22.81654098]
[1755771707667,0.002,4294.3,4294.2,23.77594098]
[1755771708344,0.002,4294.7,4294.6,2.32850556]
[1755771708669,0.002,4294.7,4294.6,23.02220913]
[1755771708855,0.002,4294.7,4294.6,23.77572408]
[1755771709254,0.0012,4294.7,4294.6,24.13182408]
[1755771709472,0.0012,4294.7,4294.6,23.77572408]
[1755771710575,0.0012,4294.7,4294.6,23.86902008]
[1755771711471,0.3152,4294.7,4294.6,23.56962008]
[1755771711776,0.3152,4294.7,4294.6,22.90962008]
[1755771712146,0.0012,4294.7,4294.6,22.90962008]
[1755771712341,0.0012,4294.7,4294.6,23.86902008]
[1755771712670,0.002,4294.9,4294.8,5.98839713]
[1755771712880,0.002,4294.9,4294.8,6.28779713]
[1755771713255,0.316,4294.9,4294.8,3.0]
[1755771713486,0.7783,4294.9,4294.8,22.72269962]
[1755771713787,0.316,4294.9,4294.8,23.02042525]
[1755771714090,0.7783,4294.9,4294.8,20.69202812]
[1755771714248,0.7783,4294.9,4294.8,23.02042525]
[1755771715490,0.002,4294.9,4294.8,23.31982525]
[1755771715789,0.002,4294.9,4294.8,23.02042525]
[1755771716089,0.002,4294.9,4294.8,23.31982525]
[1755771717244,0.002,4294.9,4294.8,23.97982525]
[1755771720678,0.002,4294.9,4294.8,23.68042525]
[1755771720878,0.316,4294.9,4294.8,6.30940673]
[1755771721080,0.316,4294.9,4294.8,23.68042525]
[1755771721285,0.002,4294.9,4294.8,23.68042525]
[1755771721684,0.002,4294.9,4294.8,23.97982525]
[1755771721983,0.002,4294.9,4294.8,23.68042525]
[1755771722609,0.002,4294.9,4294.8,23.97982525]
[1755771723355,0.002,4294.9,4294.8,24.09662525]
[1755771723780,0.002,4294.9,4294.8,24.45272525]
[1755771723984,0.002,4294.9,4294.8,24.09662525]
[1755771724481,0.002,4294.9,4294.8,23.79722525]
[1755771724686,0.7783,4294.9,4294.8,23.79722525]
[1755771725386,0.7783,4294.9,4294.8,23.13722525]
[1755771725794,0.7783,4294.9,4294.8,27.32722525]
[1755771726009,0.7783,4294.9,4294.8,6.95620673]
[1755771726208,0.7783,4294.9,4294.8,6.63519713]
[1755771726371,0.7783,4294.9,4294.8,9.63519713]
[1755771726576,0.7783,4294.9,4294.8,5.44519713]
[1755771727807,0.316,4294.9,4294.8,5.44519713]
[1755771728515,0.002,4294.9,4294.8,6.41329713]
[1755771729674,0.002,4294.9,4294.8,5.44519713]
[1755771729880,0.77,4294.9,4294.8,5.44519713]
[1755771731410,0.002,4294.9,4294.8,5.75329713]
[1755771733097,0.0012,4294.9,4294.8,5.75329713]
[1755771733286,0.7692,4294.9,4294.8,22.81621565]
[1755771733491,0.7692,4294.9,4294.8,3.1168]
[1755771733699,0.7692,4294.9,4294.8,0.1168]
[1755771737788,0.7692,4294.9,4294.4,0.1168]
[1755771737989,0.4594,4294.8,4294.5,17.39430411]
[1755771738190,0.3086,4294.6,4294.5,20.37101852]
[1755771738589,0.768,4294.6,4294.5,20.48781852]
[1755771740100,0.768,4294.6,4294.5,3.1168]
[1755771742414,0.768,4294.6,4294.5,5.44535978]
[1755771744106,0.768,4294.6,4294.5,3.1168]
[1755771744314,0.768,4294.6,4294.5,5.44535978]
[1755771744720,0.0012,4294.9,4294.8,2.32839713]
[1755771744930,0.0012,4294.9,4294.8,23.14759962]
[1755771745118,0.0012,4294.9,4294.8,23.12431565]
[1755771747116,0.0012,4294.9,4294.8,23.78431565]
[1755771748510,0.0012,4294.9,4294.8,24.14041565]
[1755771748711,0.002,4295.2,4295.1,5.98823449]
[1755771748922,0.002,4295.2,4295.1,6.29633449]
[1755771749233,0.002,4295.2,4295.1,6.41313449]
[1755771750813,0.002,4295.2,4295.1,6.58609075]
[1755771751648,0.002,4295.3,4295.2,5.98818029]
[1755771751943,0.002,4295.4,4295.3,23.35914461]
[1755771752114,0.0212,4296.8,4295.7,2.9879093]
[1755771752441,0.0212,4296.8,4296.7,2.32736751]
[1755771752743,0.3298,4296.8,4296.7,22.7216597]
[1755771752904,0.3298,4296.8,4296.7,22.81438603]
[1755771753104,0.3298,4296.8,4296.7,23.9801631]
[1755771753530,0.7892,4296.8,4296.7,23.9801631]
[1755771753716,0.3298,4296.8,4296.7,23.9801631]
[1755771754132,0.7892,4296.8,4296.7,23.9801631]
[1755771755208,0.7892,4296.8,4296.7,0.116]
[1755771756045,0.7892,4296.8,4294.8,2.32835288]
[1755771756046,0.7892,4296.8,4296.1,17.37101852]
[1755771756247,0.7892,4296.8,4296.3,0.116]
[1755771756248,0.4594,4296.7,4296.3,0.116]
[1755771756448,0.3086,4296.4,4296.3,0.116]
[1755771756635,0.7672,4296.4,4296.3,0.116]
[1755771756839,0.4806,4296.8,4296.3,3.116]
[1755771757038,0.4806,4296.8,4296.7,17.37101852]
[1755771757251,0.3298,4296.8,4296.7,19.81438603]
[1755771757639,0.0212,4296.8,4296.7,19.81438603]
[1755771758465,0.0212,4296.8,4296.7,22.81438603]
[1755771759855,0.7781,4296.8,4296.7,3.116]
[1755771764423,0.3266,4296.8,4296.7,3.116]
[1755771764621,0.3266,4296.8,4296.7,5.44336751]
[1755771764955,0.0212,4296.8,4296.7,5.75336751]
[1755771765938,0.0212,4296.8,4296.7,5.44336751]
[1755771766140,0.3266,4296.8,4296.7,5.44336751]
[1755771766662,0.0212,4296.8,4296.7,5.44336751]
[1755771767834,0.7781,4296.8,4296.7,3.116]
[1755771769065,0.3266,4296.8,4296.7,3.116]
[1755771769230,0.0212,4296.8,4296.7,3.116]
[1755771769426,0.0212,4296.8,4296.7,5.44336751]
[1755771769664,0.0212,4296.8,4296.7,22.81438603]
[1755771770858,0.0212,4296.8,4296.7,5.44336751]
[1755771771274,0.0212,4296.8,4296.7,3.116]
[1755771771474,0.0212,4296.8,4296.7,5.44336751]
[1755771771680,0.0212,4296.8,4296.7,3.116]
[1755771771983,0.7781,4296.8,4296.7,3.116]
[1755771772682,0.7781,4296.8,4296.5,0.116]
[1755771772876,0.4515,4296.7,4296.2,0.116]
[1755771773077,0.3054,4296.3,4296.2,0.116]
[1755771773578,0.7569,4296.3,4296.2,0.116]
[1755771775287,0.8729,4296.3,4295.5,0.1168]
[1755771775578,0.4515,4296.2,4295.5,0.1168]
[1755771775779,0.3054,4295.6,4295.5,0.1168]
[1755771775986,0.7569,4295.6,4295.5,0.1168]
[1755771777856,0.4515,4296.1,4295.5,0.1168]
[1755771778055,0.3054,4295.6,4295.5,0.1168]
[1755771778250,0.7569,4295.6,4295.2,3.001]
[1755771778455,0.3054,4295.6,4295.5,0.1168]
[1755771779192,0.7569,4295.6,4295.5,0.1168]
[1755771780496,0.7561,4295.6,4295.4,0.1168]
[1755771780701,0.3046,4295.6,4295.4,0.1168]
[1755771780996,0.4515,4295.5,4295.4,0.1168]
[1755771781293,0.7569,4295.5,4295.4,0.1168]
[1755771781493,0.7569,4295.5,4295.2,0.001]
[1755771781797,17.82251852,4295.4,4294.8,0.021]
[1755771781971,0.4222,4294.9,4294.8,0.021]
[1755771782171,0.4222,4294.9,4294.6,0.001]
[1755771782471,0.4515,4294.8,4294.6,0.001]
[1755771782670,0.3054,4294.7,4294.6,0.001]
[1755771783085,0.7569,4294.7,4294.6,0.001]
[1755771783291,0.4515,4295.1,4294.6,0.001]
[1755771783791,0.4515,4295.0,4294.6,0.001]
[1755771783974,0.4515,4295.0,4294.8,0.1168]
[1755771784904,0.3054,4294.9,4294.8,0.1168]
[1755771785069,0.7569,4294.9,4294.8,0.1168]
[1755771786564,0.8737,4294.9,4294.6,0.17337383]
[1755771786765,0.5683,4295.3,4294.7,0.02328451]
[1755771786965,0.5683,4295.3,4294.7,0.14008451]
[1755771787314,0.5683,4295.3,4294.8,2.32835023]
[1755771787468,0.02,4295.8,4295.2,0.1168]
[1755771787663,0.02,4295.8,4295.3,0.02328126]
[1755771788088,0.02,4295.8,4295.6,0.116]
[1755771788676,0.7619,4295.7,4295.6,0.116]
[1755771789002,0.7619,4295.7,4295.4,0.1168]
[1755771789300,0.4504,4295.6,4295.2,0.1168]
[1755771789479,0.3115,4295.3,4295.0,0.1168]
[1755771790090,0.116,4295.6,4295.0,0.1168]
[1755771790302,0.02,4295.8,4295.2,0.1168]
[1755771790509,0.02,4295.8,4295.3,0.02328126]
[1755771790805,0.02,4295.8,4295.6,0.116]
[1755771791011,0.02,4295.8,4295.7,0.02327909]
[1755771791503,0.02,4295.8,4295.6,0.116]
[1755771793509,0.02,4295.8,4295.7,0.02327909]
[1755771793715,0.3315,4295.8,4295.6,0.116]
[1755771794634,0.02,4295.8,4295.6,0.116]
[1755771794862,0.02,4295.8,4295.7,0.02327909]
[1755771795131,0.02,4295.8,4295.6,0.116]
[1755771796219,0.3115,4295.7,4295.6,0.116]
[1755771796428,0.02,4295.8,4295.6,0.116]
[1755771797030,0.3115,4295.7,4295.6,0.116]
[1755771797183,0.7619,4295.7,4295.6,0.116]
[1755771797516,0.02,4295.8,4295.6,0.116]
[1755771798097,0.02,4295.8,4295.7,0.32507909]
[1755771798481,0.02,4295.8,4295.7,3.32507909]
[1755771798718,0.02,4295.8,4295.7,5.7457093]
[1755771798897,0.022,4295.8,4295.7,5.7457093]
[1755771799815,0.022,4295.8,4295.7,6.1254093]
[1755771800016,0.022,4295.8,4295.7,7.9738179]
[1755771801319,0.022,4295.8,4295.7,8.0671009]
[1755771801814,0.022,4295.8,4295.7,7.6874009]
[1755771801985,0.022,4295.8,4295.7,23.21001082]
[1755771802182,0.3335,4295.8,4295.7,0.116]
[1755771802399,0.7839,4295.8,4295.7,0.116]
[1755771803209,0.7839,4295.8,4295.0,0.4524]
[1755771803411,0.116,4295.6,4295.0,0.1168]
[1755771803640,0.3115,4295.1,4294.8,0.1168]
[1755771803846,0.3115,4295.1,4294.6,0.17337383]
[1755771803847,0.4504,4295.0,4294.6,0.001]
[1755771804009,0.3115,4294.7,4294.6,0.001]
[1755771804207,0.3107,4294.7,4294.6,0.001]
[1755771804432,0.7611,4294.7,4294.6,0.001]
[1755771805825,0.3107,4294.7,4294.6,0.001]
[1755771806262,0.1168,4294.9,4294.6,0.001]
[1755771806575,0.4504,4295.4,4294.6,0.4196]
[1755771806781,0.1168,4295.5,4294.7,0.02328451]
[1755771807066,0.4724,4295.8,4295.3,0.1168]
[1755771807367,0.022,4295.8,4295.4,0.1168]
[1755771808329,0.022,4295.8,4295.5,0.02328017]
[1755771808705,0.022,4295.8,4295.7,0.116]
[1755771809032,0.7839,4295.8,4295.7,0.116]
[1755771809866,0.7839,4295.8,4294.6,3.4514]
[1755771810081,0.4504,4295.7,4295.3,0.1168]
[1755771810254,0.3115,4295.4,4295.3,0.1168]
[1755771811375,0.022,4295.8,4295.3,0.4186]
[1755771811678,0.022,4295.8,4295.3,2.76999503]
[1755771811876,0.022,4295.8,4295.3,0.1168]
[1755771812050,0.4504,4295.7,4295.3,0.1168]
[1755771812251,0.022,4295.8,4295.3,0.1168]
[1755771812447,0.4504,4295.7,4295.3,0.1168]
[1755771813049,0.022,4295.8,4295.3,0.1168]
[1755771813280,0.022,4295.8,4295.7,0.3018]
[1755771813780,0.022,4295.8,4295.7,0.02327909]
[1755771814778,0.022,4295.8,4295.7,0.32507909]
[1755771816475,0.022,4295.8,4295.7,0.02327909]
[1755771816679,0.3335,4295.8,4295.6,0.116]
[1755771816982,0.7839,4295.8,4295.6,0.116]
[1755771818068,0.3335,4295.8,4295.6,0.116]
[1755771818490,0.778,4295.8,4295.6,0.116]
[1755771820092,0.3335,4295.8,4295.6,0.116]
[1755771820384,0.022,4295.8,4295.6,0.116]
[1755771822773,0.3009,4295.7,4295.6,0.116]
[1755771824095,0.4665,4295.8,4295.6,0.116]
[1755771824305,0.022,4295.8,4295.6,0.116]
[1755771824665,0.022,4295.8,4295.7,0.31027909]
[1755771824890,0.022,4295.8,4295.7,23.12520691]
[1755771825092,0.022,4295.8,4295.7,23.10192782]
[1755771825510,0.022,4295.8,4295.7,23.36642782]
[1755771825823,0.022,4295.8,4295.7,23.21992782]
[1755771826459,0.022,4295.8,4295.7,23.60042782]
[1755771827777,0.022,4295.8,4295.7,23.21992782]
[1755771827973,0.3221,4295.8,4295.7,3.116]
[1755771828186,0.7666,4295.8,4295.7,3.116]
[1755771828680,0.3221,4295.8,4295.7,3.116]
[1755771829398,0.0212,4295.8,4295.7,3.403]
[1755771829895,0.0212,4295.8,4295.7,3.13927909]
[1755771830565,0.0212,4295.8,4295.7,3.42627909]
[1755771831273,0.0212,4295.8,4295.7,3.13927909]
[1755771831672,0.0212,4295.8,4295.7,3.116]
[1755771834801,0.7666,4295.8,4295.7,3.116]
[1755771836270,0.3221,4295.8,4295.7,3.116]
[1755771836603,0.7666,4295.8,4295.7,3.116]
[1755771839171,0.7666,4295.8,4295.7,0.116]
[1755771840514,0.8826,4295.8,4295.6,0.001]
[1755771840719,0.4381,4295.8,4295.6,0.001]
[1755771840920,0.4445,4295.7,4295.6,0.001]
[1755771841120,0.7454,4295.7,4295.6,0.001]
[1755771843291,2.57076185,4295.7,4295.6,0.001]
[1755771845279,3.23076185,4295.7,4295.6,0.001]
[1755771847093,6.23076185,4295.7,4295.6,0.001]
[1755771849900,3.66,4295.6,4295.2,0.001]
[1755771850107,3.66,4295.6,4294.8,0.001]
[1755771850108,0.66,4295.2,4294.8,0.001]
[1755771850412,1.77161267,4295.5,4294.8,0.001]
[1755771850413,21.44771852,4294.9,4294.8,0.001]
[1755771850615,3.66,4294.8,4294.6,0.001]
[1755771850816,0.9599,4294.7,4294.6,0.001]
[1755771851011,6.15211185,4294.7,4294.6,0.001]
[1755771851211,6.62651185,4294.7,4294.6,0.001]
[1755771851413,6.74331185,4294.7,4294.6,0.001]
[1755771851828,6.74251185,4294.7,4294.6,0.001]
[1755771856930,6.62571185,4294.7,4294.6,0.001]
[1755771857112,6.74251185,4294.7,4294.6,0.001]
[1755771859935,6.62571185,4294.7,4294.6,0.001]
[1755771860130,6.74251185,4294.7,4294.6,0.001]
[1755771862337,5.96901185,4294.7,4294.6,0.001]
[1755771862513,3.7768,4294.7,4294.6,0.001]
[1755771862708,0.1168,4294.7,4294.6,0.001]
[1755771862914,0.1168,4294.7,4294.6,0.3092]
[1755771866420,0.1188,4294.7,4294.6,0.3092]
[1755771867359,18.80731852,4294.7,4294.6,0.001]
[1755771867522,23.68805037,4294.7,4294.6,0.001]
[1755771873523,23.68805037,4294.7,4294.1,0.001]
[1755771873524,3.66,4294.6,4294.1,0.001]
[1755771873731,21.33091852,4294.2,4294.1,0.001]
[1755771873943,22.05061309,4294.2,4294.1,0.001]
[1755771874165,24.3031144,4294.2,4294.1,0.001]
[1755771874459,24.7775144,4294.2,4294.1,0.001]
[1755771875564,24.7767144,4294.2,4294.1,0.001]
[1755771877267,24.90746835,4294.2,4294.1,0.001]
[1755771877456,25.02426381,4294.2,4294.1,0.001]
[1755771877972,24.8935144,4294.2,4294.1,0.001]
[1755771879475,24.67563032,4294.2,4294.1,0.001]
[1755771879672,24.89352915,4294.2,4294.1,0.001]
[1755771886126,7.04891063,4294.2,4294.1,0.001]
[1755771886406,5.25729241,4294.2,4294.1,0.001]
[1755771886573,4.79589241,4294.2,4294.1,0.001]
[1755771886903,4.0767,4294.2,4294.1,0.001]
[1755771887206,3.7768,4294.2,4294.1,0.001]